fUST/lending_fUST_20251216
["ID","MTS","AMOUNT","RATE_DAILY","PERIOD"]
[398596453,1765858248122,-987.23,0.0001178,2]
[398596454,1765858248131,-217.97,0.0001178,2]
[398596455,1765858248141,-2916.81,0.0001178,2]
[398596456,1765858248150,-7688.55,0.0001178,2]
[398596457,1765858248161,-1704.4,0.0001178,2]
[398596458,1765858248171,-500.0,0.0001178,2]
[398596459,1765858248180,-500.0,0.0001178,2]
[398596460,1765858248189,-500.0,0.0001178,2]
[398596461,1765858248198,-500.0,0.0001178,2]
[398596462,1765858248208,-754.28,0.0001178,2]
[398596463,1765858248217,-500.0,0.0001178,2]
[398596464,1765858248227,-19522.16,0.0001178,2]
[398596465,1765858248236,-500.0,0.0001178,2]
[398596466,1765858248245,-1822.71,0.0001178,2]
[398596467,1765858248255,-500.0,0.0001178,2]
[398596468,1765858248264,-500.0,0.0001178,2]
[398596469,1765858248274,-500.0,0.0001178,2]
[398596470,1765858248285,-151.0,0.000118,2]
[398596471,1765858248294,-151.0,0.000118,2]
[398596472,1765858248305,-151.0,0.000119,2]
[398596473,1765858248316,-500.0,0.00012054,2]
[398596474,1765858248326,-500.0,0.00012054,2]
[398596475,1765858248336,-500.0,0.00012054,2]
[398596476,1765858248346,-500.0,0.00012054,2]
[398596477,1765858248356,-1023.62,0.00012054,2]
[398596478,1765858248366,-517.04297144,0.00012054,2]
[398596479,1765858248376,-500.0,0.00012054,2]
[398596480,1765858248385,-561.84,0.00012054,2]
[398596481,1765858248395,-1163.13,0.00012054,2]
[398596482,1765858248404,-500.0,0.00012054,2]
[398596483,1765858248414,-500.82,0.00012054,2]
[398596484,1765858248423,-500.0,0.00012054,2]
[398596485,1765858248432,-500.0,0.00012054,2]
[398596486,1765858248442,-500.0,0.00012054,2]
[398596487,1765858248454,-1012.31,0.00012054,2]
[398596488,1765858248475,-500.0,0.00012054,2]
[398596489,1765858248486,-500.0,0.00012054,2]
[398596490,1765858248496,-500.0,0.00012054,2]
[398596491,1765858248511,-500.0,0.00012054,2]
[398596492,1765858248528,-500.0,0.00012054,2]
[398596493,1765858248537,-500.0,0.00012054,2]
[398596494,1765858248547,-638.95385269,0.00012054,2]
[398596495,1765858248556,-1010.67,0.00012054,2]
[398596496,1765858248566,-500.0,0.00012054,2]
[398596497,1765858248575,-500.0,0.00012054,2]
[398596498,1765858248585,-6987.84,0.00012054,2]
[398596499,1765858248594,-500.0,0.00012054,2]
[398596500,1765858248604,-1457.49,0.00012054,2]
[398596501,1765858248613,-504.27932501,0.00012054,2]
[398596502,1765858248622,-500.0,0.00012054,2]
[398596503,1765858248632,-262.86371209,0.00012054,2]
[398596504,1765858248642,-500.0,0.00012054,2]
[398596505,1765858248651,-1647.99,0.00012054,2]
[398596506,1765858248661,-500.0,0.00012054,2]
[398596507,1765858248670,-558.09,0.00012054,2]
[398596508,1765858248679,-1209.57,0.00012054,2]
[398596509,1765858248688,-913.75,0.00012054,2]
[398596510,1765858248698,-2083.05,0.00012054,2]
[398596511,1765858248707,-431.04818126,0.00012054,2]
[398596512,1765858248716,-1615.34,0.00012054,2]
[398596513,1765858248726,-646.34,0.00012054,2]
[398596514,1765858248736,-1745.47,0.00012054,2]
[398596515,1765858248747,-350.65,0.00012054,2]
[398596516,1765858248757,-500.0,0.00012054,2]
[398596517,1765858248767,-500.0,0.00012054,2]
[398596518,1765858248777,-2220.91,0.00012054,2]
[398596519,1765858248786,-500.0,0.00012054,2]
[398596520,1765858248796,-2239.83,0.00012054,2]
[398596521,1765858248805,-960.12,0.00012054,2]
[398596522,1765858248814,-500.0,0.00012054,2]
[398596523,1765858248823,-903.33,0.00012054,2]
[398596524,1765858248832,-2133.64,0.00012054,2]
[398596525,1765858248842,-500.0,0.00012054,2]
[398596526,1765858248851,-520.85,0.00012054,2]
[398596527,1765858248861,-500.0,0.00012054,2]
[398596528,1765858248870,-500.0,0.00012054,2]
[398596529,1765858248880,-779.15,0.00012054,2]
[398596530,1765858248889,-500.0,0.00012054,2]
[398596531,1765858248899,-500.0,0.00012054,2]
[398596532,1765858248908,-619.1,0.00012054,2]
[398596533,1765858248917,-500.0,0.00012054,2]
[398596534,1765858248927,-150.0,0.00012054,2]
[398596535,1765858248936,-150.0,0.00012054,2]
[398596536,1765858248947,-168.45744331,0.00012054,2]
[398596537,1765858248957,-545.55,0.00012054,2]
[398596538,1765858248966,-500.0,0.00012054,2]
[398596539,1765858248977,-500.0,0.00012054,2]
[398596540,1765858248987,-336.15,0.00012054,2]
[398596541,1765858248999,-1758.6,0.00012054,2]
[398596542,1765858249008,-2122.58,0.00012054,2]
[398596543,1765858249018,-500.0,0.00012054,2]
[398596544,1765858249028,-500.0,0.00012054,2]
[398596545,1765858249038,-500.0,0.00012054,2]
[398596546,1765858249047,-987.23,0.00012054,2]
[398596547,1765858249057,-2916.81,0.00012054,2]
[398596548,1765858249066,-7688.55,0.00012054,2]
[398596549,1765858249076,-1704.4,0.00012054,2]
[398596550,1765858249086,-500.0,0.00012054,2]
[398596551,1765858249095,-213.92581574,0.00012054,2]
[398596552,1765858249104,-500.0,0.00012054,2]
[398596553,1765858249114,-601.10117223,0.00012054,2]
[398596554,1765858249124,-754.28,0.00012054,2]
[398596555,1765858249134,-500.0,0.00012054,2]
[398596556,1765858249144,-19522.16,0.00012054,2]
[398596557,1765858249154,-455.2264592,0.00012054,2]
[398596558,1765858249163,-1822.71,0.00012054,2]
[398596559,1765858249173,-500.0,0.00012054,2]
[398596560,1765858249183,-500.0,0.00012054,2]
[398596561,1765858249193,-500.0,0.00012054,2]
[398596562,1765858249203,-160.0,0.00012084,2]
[398596563,1765858249212,-198.08824625,0.00012084,2]
[398596564,1765858249222,-151.0,0.000121,2]
[398596565,1765858249231,-151.0,0.000121,2]
[398596566,1765858249241,-150.0,0.000121,2]
[398596567,1765858249252,-152.0,0.000121,2]
[398596568,1765858249261,-401.76622456,0.00012141,2]
[398596569,1765858249272,-595.37131296,0.00012162,2]
[398596570,1765858249281,-151.0,0.000122,2]
[398596571,1765858249291,-151.0,0.000122,2]
[398596572,1765858249300,-151.0,0.000123,2]
[398596573,1765858249309,-500.0,0.00012328,2]
[398596574,1765858249319,-500.0,0.00012328,2]
[398596575,1765858249329,-500.0,0.00012328,2]
[398596576,1765858249339,-1023.62,0.00012328,2]
[398596577,1765858249348,-500.0,0.00012328,2]
[398596578,1765858249358,-561.84,0.00012328,2]
[398596579,1765858249368,-1163.13,0.00012328,2]
[398596580,1765858249377,-564.89358178,0.00012328,2]
[398596581,1765858249387,-500.82,0.00012328,2]
[398596582,1765858249397,-500.0,0.00012328,2]
[398596583,1765858249406,-500.0,0.00012328,2]
[398596584,1765858249417,-502.22709719,0.00012328,2]
[398596585,1765858249426,-1012.31,0.00012328,2]
[398596586,1765858249436,-500.0,0.00012328,2]
[398596587,1765858249449,-500.0,0.00012328,2]
[398596588,1765858249459,-500.0,0.00012328,2]
[398596589,1765858249468,-500.0,0.00012328,2]
[398596590,1765858249477,-500.0,0.00012328,2]
[398596591,1765858249487,-500.0,0.00012328,2]
[398596592,1765858249497,-1010.67,0.00012328,2]
[398596593,1765858249510,-500.0,0.00012328,2]
[398596594,1765858249522,-500.0,0.00012328,2]
[398596595,1765858249532,-6987.84,0.00012328,2]
[398596596,1765858249542,-500.0,0.00012328,2]
[398596597,1765858249552,-1457.49,0.00012328,2]
[398596598,1765858249562,-500.0,0.00012328,2]
[398596599,1765858249572,-500.0,0.00012328,2]
[398596600,1765858249583,-1647.99,0.00012328,2]
[398596601,1765858249594,-500.0,0.00012328,2]
[398596602,1765858249604,-558.09,0.00012328,2]
[398596603,1765858249613,-1209.57,0.00012328,2]
[398596604,1765858249623,-913.75,0.00012328,2]
[398596605,1765858249632,-2083.05,0.00012328,2]
[398596606,1765858249642,-1615.34,0.00012328,2]
[398596607,1765858249651,-646.34,0.00012328,2]
[398596608,1765858249661,-1745.47,0.00012328,2]
[398596609,1765858249670,-500.0,0.00012328,2]
[398596610,1765858249679,-500.0,0.00012328,2]
[398596611,1765858249688,-2220.91,0.00012328,2]
[398596612,1765858249697,-500.0,0.00012328,2]
[398596613,1765858249707,-2239.83,0.00012328,2]
[398596614,1765858249716,-960.12,0.00012328,2]
[398596615,1765858249725,-500.0,0.00012328,2]
[398596616,1765858249735,-903.33,0.00012328,2]
[398596617,1765858249744,-2133.64,0.00012328,2]
[398596618,1765858249753,-426.03,0.00012328,2]
[398596619,1765858249763,-520.85,0.00012328,2]
[398596620,1765858249772,-640.13,0.00012328,2]
[398596621,1765858249781,-501.48808336,0.00012328,2]
[398596622,1765858249791,-779.15,0.00012328,2]
[398596623,1765858249800,-500.0,0.00012328,2]
[398596624,1765858249810,-500.0,0.00012328,2]
[398596625,1765858249821,-619.1,0.00012328,2]
[398596626,1765858249831,-602.87938951,0.00012328,2]
[398596627,1765858249857,-500.0,0.00012328,2]
[398596628,1765858249867,-502.82472251,0.00012328,2]
[398596629,1765858249877,-1758.6,0.00012328,2]
[398596630,1765858249886,-2122.58,0.00012328,2]
[398596631,1765858249895,-583.44124634,0.00012328,2]
[398596632,1765858249904,-500.0,0.00012328,2]
[398596633,1765858249914,-500.0,0.00012328,2]
[398596634,1765858249924,-987.23,0.00012328,2]
[398596635,1765858249934,-2916.81,0.00012328,2]
[398596636,1765858249944,-7688.55,0.00012328,2]
[398596637,1765858249954,-1704.4,0.00012328,2]
[398596638,1765858249963,-500.0,0.00012328,2]
[398596639,1765858249973,-500.0,0.00012328,2]
[398596640,1765858249982,-754.28,0.00012328,2]
[398596641,1765858249991,-500.0,0.00012328,2]
[398596642,1765858250000,-19522.16,0.00012328,2]
[398596643,1765858250009,-1822.71,0.00012328,2]
[398596644,1765858250019,-500.0,0.00012328,2]
[398596645,1765858250028,-500.0,0.00012328,2]
[398596646,1765858250038,-180.25,0.00012328,2]
[398596647,1765858250050,-587.0,0.00012509,2]
[398596648,1765858250060,-151.0,0.000126,2]
[398596649,1765858250069,-500.0,0.00012602,2]
[398596650,1765858250079,-500.0,0.00012602,2]
[398596651,1765858250087,-1023.62,0.00012602,2]
[398596652,1765858250096,-500.0,0.00012602,2]
[398596653,1765858250105,-561.84,0.00012602,2]
[398596654,1765858250116,-1163.13,0.00012602,2]
[398596655,1765858250125,-500.82,0.00012602,2]
[398596656,1765858250134,-500.0,0.00012602,2]
[398596657,1765858250142,-468.90216594,0.00012602,2]
[398596658,1765858250151,-1012.31,0.00012602,2]
[398596659,1765858250160,-500.0,0.00012602,2]
[398596660,1765858250168,-500.0,0.00012602,2]
[398596661,1765858250178,-500.0,0.00012602,2]
[398596662,1765858250187,-500.0,0.00012602,2]
[398596663,1765858250426,-500.0,0.00012602,2]
[398596664,1765858250436,-500.0,0.00012602,2]
[398596665,1765858250445,-1010.67,0.00012602,2]
[398596666,1765858250454,-500.0,0.00012602,2]
[398596667,1765858250463,-500.0,0.00012602,2]
[398596668,1765858250472,-6987.84,0.00012602,2]
[398596669,1765858250481,-500.0,0.00012602,2]
[398596670,1765858250490,-1457.49,0.00012602,2]
[398596671,1765858250500,-500.0,0.00012602,2]
[398596672,1765858250512,-500.0,0.00012602,2]
[398596673,1765858250522,-1647.99,0.00012602,2]
[398596674,1765858250532,-500.0,0.00012602,2]
[398596675,1765858250542,-558.09,0.00012602,2]
[398596676,1765858250551,-1209.57,0.00012602,2]
[398596677,1765858250560,-913.75,0.00012602,2]
[398596678,1765858250570,-2083.05,0.00012602,2]
[398596679,1765858250579,-1615.34,0.00012602,2]
[398596680,1765858250589,-646.34,0.00012602,2]
[398596681,1765858250599,-1745.47,0.00012602,2]
[398596682,1765858250608,-500.0,0.00012602,2]
[398596683,1765858250617,-500.0,0.00012602,2]
[398596684,1765858250627,-2220.91,0.00012602,2]
[398596685,1765858250636,-500.0,0.00012602,2]
[398596686,1765858250645,-1895.35950594,0.00012602,2]
[398596687,1765858250839,-344.47049406,0.00012602,2]
[398596688,1765858250849,-960.12,0.00012602,2]
[398596689,1765858250858,-500.0,0.00012602,2]
[398596690,1765858250868,-903.33,0.00012602,2]
[398596691,1765858250877,-2133.64,0.00012602,2]
[398596692,1765858250886,-520.85,0.00012602,2]
[398596693,1765858250895,-779.15,0.00012602,2]
[398596694,1765858250904,-500.0,0.00012602,2]
[398596695,1765858250913,-500.0,0.00012602,2]
[398596696,1765858250922,-619.1,0.00012602,2]
[398596697,1765858250931,-485.52299618,0.00012602,2]
[398596698,1765858250943,-14.47700382,0.00012602,2]
[398596699,1765858250951,-1758.6,0.00012602,2]
[398596700,1765858250960,-1746.96299618,0.00012602,2]
[398596701,1765858250995,-1057.43089812,0.00010959,2]
[398596702,1765858251007,-110.30055518,0.00010959,2]
[398596703,1765858251016,-1167.7314533,0.00010959,2]
[398596704,1765858251025,-375.61700382,0.00012602,2]
[398596705,1765858251034,-500.0,0.00012602,2]
[398596706,1765858251043,-500.0,0.00012602,2]
[398596707,1765858251055,-316.13928666,0.00012602,2]
[398596708,1765858251068,-671.09071334,0.00012602,2]
[398596709,1765858251078,-360.90928166,0.00012602,2]
[398596710,1765858251089,-1181.34538107,0.00012602,2]
[398596711,1765858251103,-504.32018305,0.00012602,2]
[398596712,1765858251575,-335.57153213,0.00010958,2]
[398596713,1765858251590,-164.42846787,0.00010958,2]
[398596714,1765858251600,-920.19153213,0.00010959,2]
[398596715,1765858251618,-247.53992117,0.00010959,2]
[398596716,1765858251629,-1167.7314533,0.00010959,2]
[398596717,1765858251639,-1167.7314533,0.00010959,2]
[398596718,1765858251648,-1167.7314533,0.00010959,2]
[398596719,1765858251658,-113.50871726,0.00010959,2]
[398596720,1765858251878,-590.13163626,0.00010848,2]
[398596723,1765858450202,5000.0,9.989e-05,2]
[398596724,1765858474022,0.02,9.989e-05,2]
[398596725,1765858474045,4999.98,9.989e-05,2]
[398596726,1765858497093,5000.0,9.989e-05,2]
[398596727,1765858520815,0.03,9.989e-05,2]
[398596728,1765858546791,-4999.97,9.989e-05,2]
[398596729,1765858565687,0.07,9.989e-05,2]
[398596730,1765858565713,4999.93,9.989e-05,2]
[398596731,1765858589922,5000.0,9.989e-05,2]
[398596733,1765858612632,0.08,9.989e-05,2]
[398596734,1765858612658,4999.92,9.989e-05,2]
[398596735,1765858637011,5000.0,9.989e-05,2]
[398596736,1765858659861,0.09,9.989e-05,2]
[398596737,1765858659884,4999.91,9.989e-05,2]
[398596738,1765858682611,5000.0,9.989e-05,2]
[398596740,1765858705638,0.1,9.989e-05,2]
[398596741,1765858705663,4999.9,9.989e-05,2]
[398596742,1765858728320,5000.0,9.989e-05,2]
[398596743,1765858751363,0.11,9.989e-05,2]
[398596744,1765858751385,4999.89,9.989e-05,2]
[398596753,1765858773885,5000.0,9.989e-05,2]
[398596754,1765858797563,0.12,9.989e-05,2]
[398596755,1765858797584,4999.88,9.989e-05,2]
[398596759,1765858814040,5000.0,9.989e-05,2]
[398596761,1765858821831,0.13,9.989e-05,2]
[398596762,1765858821853,4999.87,9.989e-05,2]
[398596764,1765858837653,5000.0,9.989e-05,2]
[398596765,1765858845688,0.14,9.989e-05,2]
[398596766,1765858845711,4999.86,9.989e-05,2]
[398596767,1765858862210,5000.0,9.989e-05,2]
[398596768,1765858869980,0.15,9.989e-05,2]
[398596769,1765858870003,4999.85,9.989e-05,2]
[398596770,1765858873398,150.0,8.269e-05,2]
[398596771,1765858873807,150.0,9.021e-05,2]
[398596772,1765858874224,150.0,9.772e-05,2]
[398596773,1765858886168,4550.16,9.989e-05,2]
[398596774,1765858894700,5000.0,9.948e-05,2]
[398596775,1765858896345,-449.84,9.989e-05,2]
[398596777,1765858911025,4409.86836374,9.989e-05,2]
[398596778,1765858918756,4690.46163626,9.989e-05,2]
[398596779,1765858918781,309.53836374,9.989e-05,2]
[398596782,1765858942200,5000.0,9.989e-05,2]
[398596783,1765858943665,150.0,8.242e-05,2]
[398596786,1765858944314,166.01,8.992e-05,2]
[398596788,1765858944706,249.01,9.741e-05,2]
[398596802,1765858966054,4125.45163626,9.989e-05,2]
[398596803,1765858966077,874.54836374,9.989e-05,2]
[398596805,1765858989069,5000.0,9.989e-05,2]
[398596835,1765859012882,4125.46163626,9.989e-05,2]
[398596836,1765859012905,874.53836374,9.989e-05,2]
[398596843,1765859023702,150.0,8.279e-05,2]
[398596844,1765859024132,151.63,9.031e-05,2]
[398596845,1765859024531,227.44,9.784e-05,2]
[398596848,1765859027863,150.0,0.00014535,30]
[398596853,1765859035709,5000.0,9.989e-05,2]
[398596861,1765859058644,3596.40163626,9.989e-05,2]
[398596862,1765859058669,1403.59836374,9.989e-05,2]
[398596866,1765859081485,5000.0,9.989e-05,2]
[398596867,1765859101954,150.0,8.249e-05,2]
[398596868,1765859102357,150.0,8.999e-05,2]
[398596869,1765859102809,201.51,9.749e-05,2]
[398596870,1765859105724,3094.90163626,9.989e-05,2]
[398596871,1765859105747,1905.09836374,9.989e-05,2]
[398596887,1765859128992,5000.0,9.989e-05,2]
[398596889,1765859153393,3094.91163626,9.989e-05,2]
[398596890,1765859153419,1905.08836374,9.989e-05,2]
[398596891,1765859177272,5000.0,9.989e-05,2]
[398596892,1765859182881,150.0,8.246e-05,2]
[398596893,1765859183308,150.0,8.995e-05,2]
[398596894,1765859183707,182.36,9.745e-05,2]
[398596895,1765859201751,2612.56163626,9.989e-05,2]
[398596896,1765859201775,2387.43836374,9.989e-05,2]
[398596898,1765859224836,5000.0,9.989e-05,2]
[398596900,1765859227123,-170.25,0.0001,2]
[398596901,1765859227143,-331.23399651,0.00010048,2]
[398596902,1765859227164,-561.0,0.00010097,2]
[398596903,1765859227184,-300.0,0.00010245,2]
[398596904,1765859227203,-715.72693632,0.00010245,2]
[398596908,1765859258084,150.0,8.244e-05,2]
[398596909,1765859258472,150.0,8.993e-05,2]
[398596910,1765859258879,163.94,9.743e-05,2]
[398596921,1765859333288,150.0,8.205e-05,2]
[398596922,1765859333658,150.0,8.951e-05,2]
[398596923,1765859334295,150.0,9.697e-05,2]
[398596924,1765859388684,-288.4847211,0.0001,2]
[398596925,1765859388713,-1000.0,0.0001,2]
[398596926,1765859408152,150.0,8.203e-05,2]
[398596927,1765859408354,150.0,8.948e-05,2]
[398596928,1765859408797,150.0,9.694e-05,2]
[398596970,1765859432673,-618.74241948,0.00010142,2]
[398596971,1765859432688,-581.25758052,0.00010142,2]
[398596972,1765859432698,-939.84202415,0.00010143,2]
[398597009,1765859438484,-4060.15797585,0.00010143,2]
[398597010,1765859438495,-278.85250819,0.00010143,2]
[398597012,1765859438508,-355.23623182,0.00010143,2]
[398597014,1765859438518,-562.0,0.00010143,2]
[398597016,1765859438527,-324.60931658,0.00010144,2]
[398597018,1765859438538,-186.2160616,0.00010144,2]
[398597021,1765859438548,-500.0,0.00010151,2]
[398597024,1765859438557,-500.0,0.00010151,2]
[398597027,1765859438567,-500.0,0.00010151,2]
[398597029,1765859438577,-500.0,0.00010151,2]
[398597031,1765859438586,-500.0,0.00010151,2]
[398597033,1765859438595,-280.01785583,0.00010151,2]
[398597035,1765859438607,-500.0,0.00010151,2]
[398597037,1765859438616,-500.0,0.00010151,2]
[398597039,1765859438625,-500.0,0.00010151,2]
[398597041,1765859438635,-500.0,0.00010151,2]
[398597043,1765859438644,-500.0,0.00010151,2]
[398597045,1765859438654,-395.88858297,0.00010151,2]
[398597047,1765859438663,-500.0,0.00010151,2]
[398597049,1765859438672,-500.0,0.00010151,2]
[398597051,1765859438682,-500.0,0.00010151,2]
[398597053,1765859438691,-500.0,0.00010151,2]
[398597055,1765859438700,-500.0,0.00010151,2]
[398597056,1765859438709,-500.0,0.00010151,2]
[398597058,1765859438718,-500.0,0.00010151,2]
[398597060,1765859438727,-500.0,0.00010151,2]
[398597062,1765859438736,-500.0,0.00010151,2]
[398597064,1765859438746,-500.0,0.00010151,2]
[398597066,1765859438755,-275.49693723,0.00010151,2]
[398597222,1765859440664,-22.562,0.00010151,2]
[398597417,1765859443727,-201.94106277,0.00010151,2]
[398597420,1765859443737,-500.0,0.00010151,2]
[398597422,1765859443746,-500.0,0.00010151,2]
[398597424,1765859443755,-500.0,0.00010151,2]
[398597426,1765859443765,-500.0,0.00010151,2]
[398597428,1765859443774,-500.0,0.00010151,2]
[398597430,1765859443783,-500.0,0.00010151,2]
[398597432,1765859443792,-500.0,0.00010151,2]
[398597434,1765859443802,-456.40311767,0.00010151,2]
[398597736,1765859446617,-43.59688233,0.00010151,2]
[398597738,1765859446627,-500.0,0.00010151,2]
[398597740,1765859446636,-500.0,0.00010151,2]
[398597742,1765859446649,-330.90503479,0.00010151,2]
[398598019,1765859449503,5000.0,0.0001,2]
[398599283,1765859472605,1973.0405578,0.0001,2]
[398599284,1765859472629,3026.9594422,0.0001,2]
[398599285,1765859484422,150.0,8.199e-05,2]
[398599286,1765859484823,150.0,8.944e-05,2]
[398599287,1765859485219,150.0,9.689e-05,2]
[398599289,1765859495820,5000.0,0.0001,2]
[398599292,1765859519296,1523.0505578,0.0001,2]
[398599293,1765859519317,3476.9494422,0.0001,2]
[398599295,1765859542495,5000.0,0.0001,2]
[398599297,1765859560215,150.0,8.201e-05,2]
[398599298,1765859560608,150.0,8.947e-05,2]
[398599300,1765859561007,150.0,9.692e-05,2]
[398599307,1765859565825,1073.0605578,0.0001,2]
[398599308,1765859565848,3926.9394422,0.0001,2]
[398599316,1765859589194,5000.0,0.0001,2]
[398599317,1765859612770,5000.0,0.0001,2]
[398599323,1765859632251,0.01,8.247e-05,2]
[398599324,1765859632277,149.99,8.247e-05,2]
[398599325,1765859632668,150.0,8.997e-05,2]
[398599326,1765859633283,150.0,9.746e-05,2]
[398599327,1765859636538,5000.0,0.0001,2]
[398599329,1765859659522,4550.02,0.0001,2]
[398599352,1765859703101,150.0,8.186e-05,2]
[398599353,1765859703514,150.0,8.931e-05,2]
[398599354,1765859703915,150.0,9.675e-05,2]
[398599377,1765859772683,643.217572,9.224e-05,2]
[398599378,1765859774854,150.0,8.188e-05,2]
[398599379,1765859775274,150.0,8.932e-05,2]
[398599380,1765859775702,150.0,9.677e-05,2]
[398599382,1765859839995,8456.792428,9.15e-05,2]
[398599383,1765859840024,2100.1576695,9.15e-05,2]
[398599384,1765859844377,150.0,8.274e-05,2]
[398599385,1765859844776,150.0,9.026e-05,2]
[398599386,1765859845165,150.0,9.778e-05,2]
[398599389,1765859860401,5000.0,9.941e-05,2]
[398599390,1765859884627,5000.0,9.945e-05,2]
[398599402,1765859908107,5000.0,9.945e-05,2]
[398599403,1765859912854,0.01,8.323e-05,2]
[398599404,1765859912878,149.99,8.323e-05,2]
[398599405,1765859913283,150.0,9.08e-05,2]
[398599406,1765859913691,150.0,9.836e-05,2]
[398599407,1765859933015,5000.0,9.945e-05,2]
[398599409,1765859956402,4550.02,9.945e-05,2]
[398599410,1765859956425,449.98,9.945e-05,2]
[398599411,1765859979372,5000.0,9.945e-05,2]
[398599412,1765859980304,150.0,8.381e-05,2]
[398599413,1765859980706,150.0,9.143e-05,2]
[398599414,1765859981123,150.0,9.905e-05,2]
[398599415,1765860002721,4100.03,9.945e-05,2]
[398599416,1765860002745,899.97,9.945e-05,2]
[398599419,1765860025618,5000.0,9.945e-05,2]
[398599420,1765860049089,4100.04,9.945e-05,2]
[398599421,1765860049113,899.96,9.945e-05,2]
[398599422,1765860073727,5000.0,9.945e-05,2]
[398599424,1765860096627,5000.0,9.945e-05,2]
[398599430,1765860120789,0.01,9.945e-05,2]
[398599431,1765860120810,4999.99,9.945e-05,2]
[398599437,1765860143470,5000.0,9.945e-05,2]
[398599439,1765860166443,0.02,9.945e-05,2]
[398599440,1765860166466,4999.98,9.945e-05,2]
[398599444,1765860190720,5000.0,9.945e-05,2]
[398599446,1765860214188,0.03,9.945e-05,2]
[398599447,1765860214211,4999.97,9.945e-05,2]
[398599448,1765860230130,5000.0,9.945e-05,2]
[398599449,1765860238009,0.04,9.945e-05,2]
[398599450,1765860238032,4999.96,9.945e-05,2]
[398599457,1765860253935,204.79618503,9.945e-05,2]
[398599458,1765860261956,4795.25381497,9.945e-05,2]
[398599459,1765860261980,204.74618503,9.945e-05,2]
[398599460,1765860278303,4795.20381497,9.945e-05,2]
[398599462,1765860286071,5000.0,9.945e-05,2]
[398599464,1765860302232,0.06,9.945e-05,2]
[398599465,1765860302254,4999.94,9.945e-05,2]
[398599477,1765860310800,5000.0,9.945e-05,2]
[398599485,1765860326679,0.07,9.945e-05,2]
[398599486,1765860326700,4999.93,9.945e-05,2]
[398599493,1765860335123,5000.0,9.945e-05,2]
[398599499,1765860351524,0.08,9.945e-05,2]
[398599500,1765860351550,4999.92,9.945e-05,2]
[398599501,1765860359544,5000.0,9.945e-05,2]
[398599502,1765860376583,0.09,9.945e-05,2]
[398599503,1765860376605,4999.91,9.945e-05,2]
[398599505,1765860384976,5000.0,9.945e-05,2]
[398599506,1765860400870,0.1,9.945e-05,2]
[398599507,1765860400892,4999.9,9.945e-05,2]
[398599512,1765860408890,5000.0,9.945e-05,2]
[398599513,1765860426074,730.58480104,9.945e-05,2]
[398599514,1765860432126,-300.0,0.0001005,2]
[398599515,1765860432145,-812.45693978,0.0001005,2]
[398599516,1765860432166,-204.71126898,0.00010051,2]
[398599517,1765860432186,-500.0,0.00010051,2]
[398599518,1765860432208,-500.0,0.00010051,2]
[398599519,1765860432228,-500.0,0.00010051,2]
[398599520,1765860432249,-500.0,0.00010051,2]
[398599521,1765860432270,-500.0,0.00010051,2]
[398599522,1765860432290,-500.0,0.00010051,2]